bitfinex-derivatives/quotes_ETHF0:USTF0_20250701
["timestamp","ask_amount","ask_price","bid_price","bid_amount"]
[1751338780340,27.62338299,2484.6,2484.5,2.99479]
[1751338782142,25.34578,2484.6,2484.5,2.99479]
[1751338784547,25.34278,2484.6,2484.5,2.99479]
[1751338784746,24.538,2484.6,2484.5,2.99479]
[1751338786347,25.34275,2484.6,2484.5,2.99479]
[1751338788748,0.80475,2484.6,2484.5,2.99479]
[1751338788948,25.34175,2484.6,2484.5,2.99479]
[1751338790849,0.80475,2484.7,2484.6,0.80472]
[1751338791148,0.6998,2484.8,2484.7,0.80472]
[1751338791350,25.2348,2484.8,2484.7,2.38472]
[1751338792046,26.03949,2484.8,2484.7,2.38472]
[1751338792245,3.2078,2484.9,2484.8,0.80469]
[1751338792446,25.33867,2484.9,2484.8,2.59469]
[1751338793243,25.33867,2484.9,2484.8,2.95469]
[1751338793443,0.80469,2484.8,2484.7,0.80469]
[1751338793752,0.80469,2484.8,2484.7,2.95469]
[1751338794654,25.33868,2484.9,2484.8,0.80469]
[1751338795555,25.33868,2484.9,2484.8,3.17469]
[1751338796055,25.33868,2484.9,2484.8,0.80469]
[1751338796755,25.33868,2484.9,2484.8,3.08469]
[1751338797254,25.33868,2484.9,2484.8,0.80469]
[1751338797455,25.33868,2484.9,2484.8,2.96469]
[1751338798153,25.33868,2484.9,2484.8,0.80469]
[1751338798452,4.72704,2485.0,2484.9,0.80466]
[1751338798655,29.25704,2485.0,2484.9,4.91466]
[1751338798856,29.25704,2485.0,2484.9,0.80466]
[1751338799156,29.25704,2485.0,2484.9,2.37]
[1751338800155,1.51924,2485.0,2484.9,3.17466]
[1751338800459,4.01234,2485.3,2485.2,0.80456]
[1751338800660,25.33354,2485.3,2485.2,0.84456]
[1751338800957,27.61114299,2485.3,2485.2,0.04]
[1751338802659,27.61114299,2485.3,2484.8,5.48540299]
[1751338802660,0.80466,2485.0,2484.9,0.80464]
[1751338802859,27.61026299,2485.0,2484.9,0.84464]
[1751338803066,27.61026299,2485.0,2484.9,0.04]
[1751338803254,27.61026299,2485.0,2484.9,0.84466]
[1751338803457,27.61026299,2485.0,2484.9,2.98466]
[1751338803759,0.80469,2484.9,2484.8,0.80466]
[1751338803956,1.49799,2484.9,2484.8,3.12466]
[1751338804363,1.49799,2484.9,2484.8,0.80466]
[1751338804550,1.49799,2484.9,2484.6,0.7116]
[1751338804551,0.80472,2484.7,2484.6,0.7116]
[1751338804749,0.80475,2484.6,2484.5,4.01258]
[1751338805056,2.1244,2484.6,2484.5,6.04258]
[1751338805256,0.6933,2484.6,2484.5,5.2378]
[1751338805457,0.6933,2484.6,2484.5,6.04259]
[1751338805761,0.80462,2485.1,2485.0,0.8046]
[1751338805961,1.49072,2485.1,2485.0,2.5646]
[1751338806158,0.6861,2485.1,2485.0,2.5646]
[1751338806856,1.49069,2485.1,2485.0,2.5646]
[1751338807359,0.80459,2485.2,2485.1,0.80458]
[1751338807561,25.33059,2485.2,2485.1,4.08]
[1751338807964,25.33059,2485.2,2484.9,0.80463]
[1751338807965,0.80464,2485.0,2484.9,0.80463]
[1751338808167,0.80462,2485.1,2485.0,0.80461]
[1751338808355,0.80462,2485.1,2485.0,2.87461]
[1751338808555,2.11412,2485.1,2485.0,2.87461]
[1751338808757,2.79022,2485.1,2485.0,2.87461]
[1751338809164,0.80465,2485.0,2484.9,0.80464]
[1751338809365,2.11415,2485.0,2484.9,0.80464]
[1751338809564,0.8047,2484.8,2484.5,5.48540299]
[1751338809763,3.08230299,2484.8,2484.7,0.80472]
[1751338810064,3.08230299,2484.8,2484.7,4.93472]
[1751338810259,2.27760299,2484.8,2484.7,4.93472]
[1751338810566,0.80469,2484.8,2484.7,4.93472]
[1751338811260,25.32967,2484.9,2484.8,0.80469]
[1751338811461,24.525,2484.9,2484.8,4.93469]
[1751338811957,25.32966,2484.9,2484.8,4.93469]
[1751338812356,2.83004,2485.0,2484.9,0.80466]
[1751338812561,25.32764,2485.0,2484.9,4.93466]
[1751338812764,25.32762,2485.0,2484.9,4.93466]
[1751338813162,24.523,2485.0,2484.9,4.93466]
[1751338813566,25.32762,2485.0,2484.9,4.93466]
[1751338814165,24.523,2485.0,2484.9,4.93466]
[1751338814764,25.32762,2485.0,2484.9,4.93466]
[1751338815568,24.523,2485.0,2484.9,4.93466]
[1751338815763,25.32762,2485.0,2484.9,4.93466]
[1751338815966,24.523,2485.0,2484.9,4.93466]
[1751338816164,25.32762,2485.0,2484.9,4.93466]
[1751338817871,25.32762,2485.0,2484.9,4.13]
[1751338818367,27.60522299,2485.0,2484.9,4.13]
[1751338819574,27.60522299,2485.0,2484.9,4.93466]
[1751338819772,27.60522299,2485.0,2484.9,4.13]
[1751338820171,0.80473,2484.8,2484.7,0.80471]
[1751338820372,0.80473,2484.8,2484.7,0.90471]
[1751338824371,2.13358,2484.9,2484.8,0.80469]
[1751338824567,0.80469,2484.8,2484.7,0.80471]
[1751338824772,0.80469,2484.8,2484.7,0.89471]
[1751338824972,6.29009299,2484.8,2484.7,0.09]
[1751338825364,4.01241,2485.1,2484.7,6.00177]
[1751338825569,4.01241,2485.1,2485.0,0.80462]
[1751338825765,3.2078,2485.1,2485.0,2.51462]
[1751338826072,3.2078,2485.1,2485.0,4.79222299]
[1751338826372,27.7258,2485.1,2485.0,4.79222299]
[1751338826566,3.2078,2485.1,2485.0,4.79222299]
[1751338828170,26.01093,2485.3,2485.2,0.80456]
[1751338828470,25.2064,2485.3,2485.2,3.43456]
[1751338829575,0.80456,2485.2,2485.1,2.21578]
[1751338829876,25.2064,2485.3,2485.2,0.80456]
[1751338830275,26.01093,2485.3,2485.2,4.75456]
[1751338831476,25.2064,2485.3,2485.2,4.75456]
[1751338832175,26.01093,2485.3,2485.2,0.80456]
[1751338832371,26.01093,2485.3,2485.2,4.93456]
[1751338832566,25.2064,2485.3,2485.2,4.93456]
[1751338833275,25.2064,2485.3,2485.2,0.80456]
[1751338833579,26.01093,2485.3,2485.2,4.93456]
[1751338833776,25.2064,2485.3,2485.2,4.93456]
[1751338834466,26.01093,2485.3,2485.2,4.93456]
[1751338834678,25.2064,2485.3,2485.2,4.76456]
[1751338834876,26.01093,2485.3,2485.2,0.80456]
[1751338835071,26.01093,2485.3,2485.2,2.75456]
[1751338835072,0.6894,2485.3,2485.2,2.75456]
[1751338835278,25.2034,2485.3,2485.2,2.75456]
[1751338835580,0.6894,2485.3,2485.2,2.75456]
[1751338835780,25.2034,2485.3,2485.2,2.75456]
[1751338836570,0.6894,2485.3,2485.2,2.75456]
[1751338836770,2.27760299,2485.6,2485.5,0.80446]
[1751338836771,0.80444,2485.6,2485.5,0.80446]
[1751338836976,0.80447,2485.5,2485.4,0.80447]
[1751338837180,1.51234,2485.6,2485.5,0.80446]
[1751338837375,26.02634,2485.6,2485.5,4.93446]
[1751338839877,0.7079,2485.6,2485.5,4.93446]
[1751338840180,0.7079,2485.6,2485.5,7.21206299]
[1751338840375,3.18351189,2485.9,2485.8,0.80436]
[1751338840577,24.512,2485.9,2485.8,7.21196299]
[1751338840979,3.859,2486.0,2485.9,0.80433]
[1751338841187,3.859,2486.0,2485.9,4.93433]
[1751338841383,3.18351189,2486.2,2486.1,0.80427]
[1751338841680,3.83471189,2486.2,2486.1,4.93427]
[1751338841875,25.1622,2486.2,2486.1,4.93427]
[1751338842081,25.1622,2486.2,2486.1,5.64137]
[1751338842576,3.2078,2486.3,2486.2,0.80423]
[1751338842778,27.7188,2486.3,2486.2,4.47423]
[1751338843186,27.7158,2486.3,2486.2,4.47423]
[1751338843684,27.7158,2486.3,2486.2,6.75183299]
[1751338843883,27.7158,2486.3,2486.2,3.08183299]
[1751338844088,28.52,2486.3,2486.2,2.73423]
[1751338844281,28.52,2486.3,2486.2,1.93]
[1751338844587,28.52,2486.3,2486.2,2.73423]
[1751338844885,28.52,2486.3,2486.2,1.93]
[1751338845181,28.52,2486.3,2486.2,2.73423]
[1751338845984,28.52,2486.3,2486.2,1.93]
[1751338846388,28.52,2486.3,2486.2,2.82423]
[1751338847279,28.52,2486.3,2486.2,2.02]
[1751338848484,0.80423,2486.2,2486.1,2.16867]
[1751338848785,0.80423,2486.2,2486.1,4.31867]
[1751338849291,0.80423,2486.2,2486.1,3.94867]
[1751338850091,0.80423,2486.2,2486.1,3.1444]
[1751338850491,0.80423,2486.2,2486.1,3.94867]
[1751338850887,0.80423,2486.2,2486.1,3.1444]
[1751338852084,3.08183299,2486.2,2486.1,1.78]
[1751338852386,0.80436,2485.8,2485.7,3.9176]
[1751338852586,0.80436,2485.8,2485.7,6.1276]
[1751338852790,0.80436,2485.8,2485.7,2.21]
[1751338852989,3.08196299,2485.8,2485.7,2.21]
[1751338853188,4.40366299,2485.8,2485.7,2.21]
[1751338859196,8.59930299,2485.8,2485.1,3.2078]
[1751338859397,0.80456,2485.2,2485.1,6.90239]
[1751338860088,0.80456,2485.2,2485.1,9.17999299]
[1751338860293,3.2078,2485.5,2485.1,8.37540299]
[1751338860591,3.2078,2485.5,2485.4,3.08209299]
[1751338860889,3.2078,2485.5,2485.4,6.39209299]
[1751338861095,0.80438,2485.8,2485.7,0.8044]
[1751338861300,0.80438,2485.8,2485.7,3.31]
[1751338861897,0.80443,2485.6,2485.5,1.3864]
[1751338862091,0.80443,2485.6,2485.5,4.6964]
[1751338862894,3.08203299,2485.6,2485.5,3.31]
[1751338863095,6.28983299,2485.6,2485.5,3.31]
[1751338863400,0.80456,2485.2,2485.1,1.3108]
[1751338863594,0.80456,2485.2,2485.1,4.5908]
[1751338863896,0.80456,2485.2,2485.1,3.9355]
[1751338864992,0.80456,2485.2,2485.1,4.74009]
[1751338865693,0.80456,2485.2,2485.1,3.9355]
[1751338870194,0.80456,2485.2,2485.1,4.74009]
[1751338872605,0.80455,2485.3,2485.2,0.80455]
[1751338872798,25.30651,2485.4,2485.3,0.8045]
[1751338873003,1.45648,2485.5,2485.4,0.80449]
[1751338873299,25.30645,2485.6,2485.5,0.80444]
[1751338873493,25.30645,2485.6,2485.5,5.45444]
[1751338873697,14.5958,2485.9,2485.7,0.80437]
[1751338873902,24.502,2485.8,2485.7,4.11437]
[1751338874203,3.2078,2485.9,2485.8,0.80436]
[1751338874404,28.51413,2485.9,2485.8,1.66]
[1751338874600,0.80436,2485.8,2485.7,2.14437]
[1751338874800,0.80436,2485.8,2485.7,5.45437]
[1751338874995,28.51416,2485.9,2485.8,0.80436]
[1751338875201,28.51416,2485.9,2485.8,2.60436]
[1751338875801,3.2078,2485.9,2485.8,2.60436]
[1751338876000,27.7088,2485.9,2485.8,4.88196299]
[1751338876207,3.2078,2485.9,2485.8,4.88196299]
[1751338876502,0.80432,2486.0,2485.9,0.80433]
[1751338876694,0.80432,2486.0,2485.9,3.31]
[1751338877297,24.501,2486.1,2485.8,0.80434]
[1751338877502,0.80433,2485.9,2485.8,2.58434]
[1751338878201,0.80433,2485.9,2485.8,1.78]
[1751338878605,0.80436,2485.8,2485.7,1.34]
[1751338878806,0.80436,2485.8,2485.7,4.2244]
[1751338879507,26.51169,2486.1,2485.7,4.2244]
[1751338879508,0.80432,2486.0,2485.9,0.8043]
[1751338880708,0.80432,2486.0,2485.9,3.0843]
[1751338881209,0.80433,2485.9,2485.8,0.80434]
[1751338881410,0.80433,2485.9,2485.8,3.11434]
[1751338884210,0.80433,2485.9,2485.8,2.96434]
[1751338884407,0.80433,2485.9,2485.8,3.14434]
[1751338885210,26.50968,2486.1,2485.8,3.14434]
[1751338885211,0.80432,2486.0,2485.9,0.8043]
[1751338885410,3.2078,2486.2,2485.6,2.67287]
[1751338885610,0.8044,2485.7,2485.6,1.9618]
[1751338885812,0.8044,2485.7,2485.6,1.3]
[1751338886113,1.5011,2485.7,2485.6,1.3]
[1751338886506,0.80446,2485.5,2485.4,0.80447]
[1751338886805,0.80446,2485.5,2485.4,4.11447]
[1751338887406,0.80446,2485.5,2485.4,4.77747]
[1751338889407,0.80444,2485.6,2485.5,0.80443]
[1751338889615,0.80444,2485.6,2485.5,0.85443]
[1751338892312,0.80444,2485.6,2485.5,0.05]
[1751338894319,0.80444,2485.6,2485.5,0.85446]
[1751338894813,0.80444,2485.6,2485.5,0.05]
[1751338895415,3.08204299,2485.6,2485.5,0.05]
[1751338895631,4.40444299,2485.6,2485.5,0.05]
[1751338896817,0.6967,2485.7,2485.5,0.05]
[1751338897011,0.6967,2485.7,2485.6,3.08203299]
[1751338897215,3.2078,2485.8,2485.7,0.8044]
[1751338897415,3.2078,2485.8,2485.7,4.1144]
[1751338897820,1.51675,2485.9,2485.8,0.80436]
[1751338898018,1.51675,2485.9,2485.8,2.76436]
[1751338898221,1.51675,2485.9,2485.8,2.77436]
[1751338898421,0.7124,2485.9,2485.8,2.77436]
[1751338899019,1.51673,2485.9,2485.8,2.77436]
[1751338899222,1.51673,2485.9,2485.8,0.80436]
[1751338899422,1.51673,2485.9,2485.8,3.10436]
[1751338900120,1.51673,2485.9,2485.8,0.80436]
[1751338900323,0.80438,2485.8,2485.7,0.80437]
[1751338900619,0.80438,2485.8,2485.7,2.75437]
[1751338901219,1.51675,2485.9,2485.8,0.80436]
[1751338901425,0.7124,2485.9,2485.8,3.06436]
[1751338902528,1.51673,2485.9,2485.8,3.06436]
[1751338904023,0.7124,2485.9,2485.8,3.06436]
[1751338904422,0.80432,2486.0,2485.9,0.80433]
[1751338904625,4.01207,2486.1,2486.0,0.8043]
[1751338904825,0.6957,2486.2,2486.1,0.80427]
[1751338905029,0.6957,2486.2,2486.1,2.56427]
[1751338905722,1.49993,2486.2,2486.1,1.76]
[1751338906225,1.49993,2486.2,2486.1,2.56427]
[1751338906735,1.49993,2486.2,2486.1,1.76]
[1751338907040,0.80427,2486.1,2486.0,0.80428]
[1751338907239,0.80427,2486.1,2486.0,1.93]
[1751338907441,0.80427,2486.1,2486.0,2.7343]
[1751338907641,0.80427,2486.1,2486.0,2.7743]
[1751338907940,0.80427,2486.1,2486.0,2.8943]
[1751338908336,0.80427,2486.1,2486.0,2.9643]
[1751338909244,1.49996,2486.2,2486.1,0.80427]
[1751338909639,1.49996,2486.2,2486.1,2.76427]
[1751338909840,0.8042,2486.3,2486.2,0.8042]
[1751338910039,0.8042,2486.3,2485.9,0.6999]
[1751338910040,0.8043,2486.0,2485.9,0.6999]
[1751338910242,3.08190299,2486.0,2485.9,0.06]
[1751338910740,0.8043,2486.0,2485.9,0.06]
[1751338910942,2.99140299,2486.1,2485.8,0.80434]
[1751338910943,0.80433,2485.9,2485.8,0.80434]
[1751338911241,0.80433,2485.9,2485.8,2.44434]
[1751338911644,0.80433,2485.9,2485.8,1.64]
[1751338912037,0.80433,2485.9,2485.8,2.44436]
[1751338912341,3.08193299,2485.9,2485.8,1.64]
[1751338914440,3.08193299,2485.9,2485.8,2.44436]
[1751338914638,0.80433,2485.9,2485.8,2.44436]
[1751338915142,3.08193299,2485.9,2485.8,1.64]
[1751338915845,6.28973299,2485.9,2485.8,1.64]
[1751338917947,0.80449,2485.4,2485.3,4.01231]
[1751338918239,0.80449,2485.4,2485.3,6.65231]
[1751338918438,0.80449,2485.4,2485.3,5.8478]
[1751338918640,0.80449,2485.4,2485.3,6.65233]
[1751338919144,0.80449,2485.4,2485.3,5.8478]
[1751338920245,2.17699,2485.4,2485.3,5.8478]
[1751338921140,1.48888,2485.5,2485.4,0.80449]
[1751338921339,1.48888,2485.5,2485.4,3.08449]
[1751338921643,1.48888,2485.5,2485.4,2.28]
[1751338922043,4.69668,2485.5,2485.4,2.28]
[1751338922250,6.02848,2485.5,2485.4,2.28]
[1751338922848,8.30608299,2485.5,2485.4,2.28]
[1751338925948,14.5918,2485.8,2485.7,0.8044]
[1751338926247,14.5918,2485.8,2485.7,3.1444]
[1751338926248,4.72599,2485.8,2485.7,3.1444]
[1751338926452,4.72599,2485.8,2485.7,0.8044]
[1751338926950,1.51819,2485.8,2485.7,2.8644]
[1751338927549,1.51819,2485.8,2485.7,0.8044]
[1751338927953,0.80443,2485.7,2485.6,0.80441]
[1751338928154,0.80443,2485.7,2485.6,0.83441]
[1751338929950,1.51819,2485.8,2485.7,0.8044]
[1751338930756,1.51819,2485.8,2485.7,3.0044]
[1751338930951,1.51819,2485.8,2485.7,0.8044]
[1751338931257,0.80443,2485.7,2485.6,0.80441]
[1751338931450,0.80443,2485.7,2485.6,2.80441]
[1751338932956,0.7138,2485.8,2485.6,2.80441]
[1751338932957,0.7138,2485.8,2485.7,0.8044]
[1751338933158,24.488,2485.9,2485.8,0.80436]
[1751338933948,0.80441,2485.7,2485.6,0.80439]
[1751338934254,0.80441,2485.7,2485.6,4.11439]
[1751338934956,0.80441,2485.7,2485.6,0.80439]
[1751338935158,0.80441,2485.7,2485.6,2.85439]
[1751338935554,0.80441,2485.7,2485.6,0.80439]
[1751338935754,0.80441,2485.7,2485.6,2.77439]
[1751338935954,0.80441,2485.7,2485.6,0.80439]
[1751338936155,0.80441,2485.7,2485.6,4.11439]
[1751338936555,30.77579299,2485.8,2485.7,0.8044]
[1751338936750,30.77579299,2485.8,2485.7,3.0844]
[1751338936955,30.77579299,2485.8,2485.7,3.1544]
[1751338937561,27.56799299,2485.8,2485.7,0.8044]
[1751338937963,27.56799299,2485.8,2485.7,3.1444]
[1751338938965,27.56799299,2485.8,2485.7,0.8044]
[1751338939957,27.56799299,2485.8,2485.7,2.8144]
[1751338940157,27.56799299,2485.8,2485.7,2.7644]
[1751338940358,0.8044,2485.7,2485.6,0.80441]
[1751338940564,0.8044,2485.7,2485.6,3.03441]
[1751338941961,0.8044,2485.7,2485.6,2.23]
[1751338942265,1.5151,2485.7,2485.6,2.23]
[1751338942564,1.5151,2485.7,2485.6,3.03443]
[1751338942764,1.5151,2485.7,2485.6,0.80443]
[1751338943159,1.5151,2485.7,2485.6,2.37]
[1751338943461,1.5151,2485.7,2485.6,3.17443]
[1751338944265,1.5151,2485.7,2485.6,2.85443]
[1751338945864,1.5151,2485.7,2485.6,2.05]
[1751338946462,1.5151,2485.7,2485.6,2.85443]
[1751338946764,0.8044,2485.7,2485.6,2.85443]
[1751338947157,25.28739,2485.8,2485.7,0.8044]
[1751338947364,25.28739,2485.8,2485.7,2.9044]
[1751338947865,25.28739,2485.8,2485.7,0.8244]
[1751338948764,3.2078,2485.9,2485.8,0.80436]
[1751338948967,27.6898,2485.9,2485.8,3.05436]
[1751338949169,27.6898,2485.9,2485.8,0.80436]
[1751338949357,27.6898,2485.9,2485.8,2.77436]
[1751338949560,27.6898,2485.9,2485.8,3.12436]
[1751338949966,27.6898,2485.9,2485.8,0.80436]
[1751338950261,27.6898,2485.9,2485.8,3.04436]
[1751338950470,4.01213,2485.9,2485.8,3.04436]
[1751338950661,28.49413,2485.9,2485.8,3.04436]
[1751338950858,3.2078,2485.9,2485.8,3.04436]
[1751338951360,0.80429,2486.1,2486.0,0.8043]
[1751338951561,25.28529,2486.1,2486.0,0.8043]
[1751338951769,0.80429,2486.1,2486.0,2.9643]
[1751338952067,25.28529,2486.1,2486.0,3.4522]
[1751338952267,25.28529,2486.1,2486.0,3.6522]
[1751338952768,25.28529,2486.1,2486.0,1.4822]
[1751338953163,24.481,2486.1,2486.0,1.4822]
[1751338953364,6.20050299,2486.2,2486.1,0.80427]
[1751338953568,28.4019,2486.2,2486.1,0.80427]
[1751338953765,28.4019,2486.2,2486.1,2.91427]
[1751338953966,28.4019,2486.2,2486.1,0.80427]
[1751338954371,29.20613,2486.2,2486.1,0.80427]
[1751338954868,29.20613,2486.2,2486.1,2.72427]
[1751338955064,29.20613,2486.2,2486.1,0.80427]
[1751338955263,29.20613,2486.2,2486.1,2.91427]
[1751338955770,29.20613,2486.2,2486.1,0.80427]
[1751338955969,29.20613,2486.2,2486.1,2.98427]
[1751338956763,29.20613,2486.2,2486.1,0.80427]
[1751338956973,29.20613,2486.2,2486.1,3.13427]
[1751338957176,29.20613,2486.2,2486.0,0.80428]
[1751338957177,0.80427,2486.1,2486.0,0.80428]
[1751338957364,2.16677,2486.1,2486.0,2.81428]
[1751338958770,0.8043,2486.0,2485.9,0.6725]
[1751338958971,0.8043,2486.0,2485.9,2.8425]
[1751338960270,0.8043,2486.0,2485.9,1.47683]
[1751338960573,0.8043,2486.0,2485.9,2.6825]
[1751338960973,0.80433,2485.9,2485.8,0.80434]
[1751338961273,1.47813,2485.9,2485.8,0.81434]
[1751338961573,0.80432,2486.0,2485.9,0.80433]
[1751338961871,0.80432,2486.0,2485.9,2.89433]
[1751338962471,28.23169299,2486.1,2486.0,0.8043]
[1751338962673,25.95409,2486.1,2486.0,0.8043]
[1751338963068,0.80433,2486.0,2485.9,0.80431]
[1751338963269,0.80433,2486.0,2485.9,2.53431]
[1751338964771,0.80433,2486.0,2485.9,1.73]
[1751338964971,2.23703,2486.0,2485.9,1.73]
[1751338965972,0.80436,2485.8,2485.7,0.80439]
[1751338966172,27.55596299,2485.8,2485.7,1.97]
[1751338966672,29.55726299,2485.8,2485.7,1.97]
[1751338981094,0.80449,2485.4,2485.3,5.42091]
[1751338981294,0.80449,2485.4,2485.3,8.51091]
[1751338983896,25.27549,2485.4,2485.3,7.7064]
[1751338984095,25.27549,2485.4,2485.3,7.0018]
[1751338984695,25.27549,2485.4,2485.3,6.2978]
[1751338985794,25.27549,2485.4,2485.3,3.09]
[1751338986195,26.66069,2485.4,2485.3,3.09]
[1751338986600,25.27549,2485.4,2485.3,3.89453]
[1751338986794,25.27549,2485.4,2485.3,3.09]
[1751338987398,27.31909,2485.4,2485.3,3.09]
[1751338989002,29.59669299,2485.4,2485.3,3.09]
[1751338994700,0.80459,2485.1,2485.0,1.3184]
[1751338995007,27.55419299,2485.1,2485.0,4.4384]
[1751338995704,27.55419299,2485.1,2485.0,5.24302]
[1751338996105,25.27659,2485.1,2485.0,5.24302]
[1751338996907,25.27659,2485.1,2485.0,4.4384]
[1751338997305,25.27659,2485.1,2485.0,5.24302]
[1751338998601,0.7111,2485.2,2485.1,0.80459]
[1751338998806,24.471,2485.2,2485.1,4.89219299]
[1751338999109,4.01228,2485.5,2485.1,10.62887299]
[1751338999410,24.472,2485.4,2485.3,0.80453]
[1751338999605,24.472,2485.4,2485.3,2.58453]
[1751338999805,24.472,2485.4,2485.3,3.27933]
[1751339000205,25.27649,2485.4,2485.3,3.27933]
[1751339001604,0.80442,2485.7,2485.6,0.8044]
[1751339001805,25.27542,2485.7,2485.6,2.7544]
[1751339002006,25.27442,2485.7,2485.6,2.7544]
[1751339002309,25.27442,2485.7,2485.6,0.8044]
[1751339002611,0.80443,2485.6,2485.5,1.49354]
[1751339002806,0.80443,2485.6,2485.5,4.80354]
[1751339004111,0.80443,2485.6,2485.5,0.6891]
[1751339004314,0.80443,2485.6,2485.5,2.8191]
[1751339005202,0.80443,2485.6,2485.5,3.62356]
[1751339005915,0.80443,2485.6,2485.5,1.49356]
[1751339006108,0.80443,2485.6,2485.5,3.56356]
[1751339006916,0.80443,2485.6,2485.5,1.49356]
[1751339007116,0.80443,2485.6,2485.5,3.79356]
[1751339007715,0.80443,2485.6,2485.5,1.49356]
[1751339008016,0.80443,2485.6,2485.5,2.7191]
[1751339008316,0.80443,2485.6,2485.5,0.6891]
[1751339008518,0.80443,2485.6,2485.5,3.0691]
[1751339008709,0.80443,2485.6,2485.5,0.6891]
[1751339008907,0.80449,2485.4,2485.3,0.6948]
[1751339009213,25.27049,2485.4,2485.3,0.6948]
[1751339009409,0.80453,2485.3,2485.2,0.6777]
[1751339009812,0.80453,2485.3,2485.2,2.6677]
[1751339010005,0.80459,2485.1,2485.0,0.6584]
[1751339010314,0.80459,2485.1,2485.0,3.1884]
[1751339011620,0.80458,2485.2,2485.1,0.80456]
[1751339011811,0.80458,2485.2,2485.1,4.11456]
[1751339012918,0.80458,2485.2,2485.1,3.31]
[1751339013716,0.80458,2485.2,2485.1,4.11459]
[1751339013915,0.80458,2485.2,2485.1,3.31]
[1751339014518,0.80458,2485.2,2485.1,4.11459]
[1751339016019,0.80458,2485.2,2485.1,3.31]
[1751339016318,0.80458,2485.2,2485.1,4.11459]
[1751339017511,0.80458,2485.2,2485.1,3.31]
[1751339018121,0.80458,2485.2,2485.1,4.11459]
[1751339021322,0.80458,2485.2,2485.1,3.31]
[1751339021823,0.80458,2485.2,2485.1,4.11459]
[1751339022426,0.80458,2485.2,2485.1,3.31]
[1751339022927,0.80458,2485.2,2485.1,4.11459]
[1751339023828,0.80458,2485.2,2485.1,3.31]
[1751339024531,0.80458,2485.2,2485.1,4.11459]
[1751339024831,0.80458,2485.2,2485.1,3.31]
[1751339025731,0.80458,2485.2,2485.1,4.11459]
[1751339026533,0.80458,2485.2,2485.1,3.31]
[1751339027032,0.80458,2485.2,2485.1,4.11459]
[1751339027729,0.80458,2485.2,2485.1,3.31]
[1751339030434,0.80458,2485.2,2485.1,4.11459]
[1751339031333,0.80456,2485.3,2485.2,0.80453]
[1751339031531,25.26556,2485.3,2485.2,4.11453]
[1751339033135,0.80456,2485.3,2485.2,4.11453]
[1751339033329,25.26556,2485.3,2485.2,4.11453]
[1751339034140,3.8915,2485.5,2485.3,0.80449]
[1751339034341,28.47228,2485.5,2485.4,2.17239]
[1751339034640,28.47228,2485.5,2485.4,3.87239]
[1751339035337,28.47228,2485.5,2485.4,2.17239]
[1751339035534,28.47228,2485.5,2485.4,3.5979]
[1751339036125,28.47228,2485.5,2485.4,2.17239]
[1751339036532,28.47228,2485.5,2485.4,4.46239]
[1751339037235,25.26448,2485.5,2485.4,4.17239]
[1751339037635,25.26248,2485.5,2485.4,4.17239]
[1751339037835,25.26248,2485.5,2485.4,2.17239]
[1751339038333,25.26248,2485.5,2485.4,4.41239]
[1751339039336,27.54008299,2485.5,2485.1,3.2078]
[1751339039538,0.80456,2485.2,2485.1,4.88757]
[1751339039734,0.80456,2485.2,2485.1,0.8752]
[1751339039940,25.26156,2485.2,2485.1,0.17]
[1751339040138,26.59036,2485.2,2485.1,0.17]
[1751339040738,26.59036,2485.2,2485.1,0.97459]
[1751339040939,25.26156,2485.2,2485.1,0.17]
[1751339041344,25.26156,2485.2,2485.1,0.97459]
[1751339042341,24.457,2485.2,2485.1,0.97459]
[1751339042536,3.2078,2485.3,2485.2,0.80456]
[1751339042840,4.01233,2485.3,2485.2,4.80776]
[1751339043135,4.01233,2485.3,2485.2,6.85076]
[1751339043735,3.2078,2485.3,2485.2,6.85076]
[1751339044446,0.80453,2485.3,2485.2,6.85076]
[1751339049446,0.80453,2485.3,2485.1,0.80458]
[1751339049447,0.80456,2485.2,2485.1,0.80458]
[1751339049643,1.47436,2485.2,2485.1,0.86458]
[1751339053441,0.80455,2485.4,2485.1,0.06]
[1751339053638,7.89356189,2485.9,2485.5,0.80446]
[1751339053847,3.2078,2485.9,2485.8,0.80436]
[1751339054048,3.18351189,2486.1,2486.0,0.8043]
[1751339054346,28.46403,2486.2,2486.1,0.80427]
[1751339054648,28.46403,2486.2,2486.1,4.11427]
[1751339055146,6.40115793,2486.2,2486.1,4.11427]
[1751339055346,7.20538793,2486.2,2486.1,4.11427]
[1751339055548,6.40115793,2486.2,2486.1,4.77587]
[1751339055751,7.20538793,2486.2,2486.1,4.77587]
[1751339056247,6.40115793,2486.2,2486.1,4.77587]
[1751339056445,3.19335793,2486.2,2486.1,4.77587]
[1751339056653,27.64135793,2486.4,2486.3,0.8042]
[1751339056847,3.19335793,2486.4,2486.3,2.5442]
[1751339057041,3.19335793,2486.5,2486.3,1.74]
[1751339057244,3.19335793,2486.5,2486.4,3.08177299]
[1751339057444,3.19335793,2486.6,2486.5,0.80414]
[1751339057643,3.19335793,2486.6,2486.5,4.11414]
[1751339058246,3.19335793,2486.6,2486.5,5.45934]
[1751339058449,3.19335793,2486.7,2486.6,0.80411]
[1751339058753,3.2078,2486.8,2486.5,1.3452]
[1751339058953,0.80409,2486.7,2486.6,0.8041]